[Event "Paris FIDE GP"]
[Site "Elancourt"]
[Date "2013.09.28"]
[Round "6"]
[White "Wang, Hao"]
[Black "Giri, Anish"]
[Result "1/2-1/2"]
[ECO "D12"]
[WhiteElo "2747"]
[BlackElo "2737"]
[Annotator "ChessBase Website"]
[PlyCount "86"]
[EventDate "2013.09.22"]
[EventType "tourn"]
[EventRounds "11"]
[EventCountry "FRA"]
[EventCategory "20"]
[SourceTitle "CBM 157"]
[Source "ChessBase"]
[SourceDate "2013.11.12"]
[SourceVersion "1"]
[SourceVersionDate "2013.11.12"]
[SourceQuality "1"]
[TimeControl "40/7200:20/3600:900+30"]
[WhiteClock "2:00:00"]
[BlackClock "2:00:00"]

1. d4 {[%emt 0:00:04]} d5 {[%emt 0:00:02]} 2. c4 {[%emt 0:00:06]} c6 {[%emt 0:
00:02]} 3. Nf3 {[%emt 0:00:07]} Nf6 {[%emt 0:00:03]} 4. e3 {[%emt 0:01:16]} Bf5
{[%emt 0:00:36]} 5. Nc3 {[%emt 0:00:06]} e6 {[%emt 0:00:02]} 6. Nh4 {[%emt 0:
00:09]} Be4 {[%emt 0:00:01]} 7. f3 {[%emt 0:00:11]} Bg6 {[%emt 0:00:01]} 8. Qb3
{[%emt 0:00:08]} Qc7 {[%emt 0:00:03]} 9. Bd2 {[%emt 0:00:10]} Be7 {[%emt 0:00:
02]} 10. Nxg6 {[%emt 0:00:07]} hxg6 {[%emt 0:00:03]} 11. O-O-O {[%emt 0:00:09]}
dxc4 {[%emt 0:00:04]} 12. Bxc4 {[%emt 0:00:08]} b5 {[%emt 0:00:06]} 13. Bd3 {
[%emt 0:00:03]} a6 {[%emt 0:01:21]} 14. Kb1 {[%emt 0:02:03]} c5 {[%emt 0:02:06]
} 15. dxc5 {[%emt 0:00:33]} Nbd7 {[%emt 0:02:09]} 16. Ne4 {[%emt 0:01:46]} Nxe4
{[%emt 0:06:04]} 17. Bxe4 {[%emt 0:00:10]} Nxc5 {[%emt 0:00:26]} 18. Qc3 {
[%emt 0:06:41]} Bf6 {[%emt 0:01:02]} 19. Qc2 {[%emt 0:00:07]} Rc8 {[%emt 0:00:
12]} 20. Rc1 {[%emt 0:01:15]} O-O {[%emt 0:03:24]} 21. Bb4 {[%emt 0:02:04]} Qe5
{[%emt 0:09:33]} 22. Bc3 {[%emt 0:27:06]} Qb8 {[%emt 0:06:39]} 23. Bxf6 {
[%emt 0:01:54]} Nxe4 $146 {[%emt 0:04:27] The Chinese player decided to repeat
a line that was seen in the game Karpov-Caruana from 2008. Giri was very
familiar with the variation, and it is little wonder that he was - it is known
that Giri and Caruana have used Chuchelov as a second in previous years. Wang
Hao did not provide any clear improvement on the aforementioned game and Giri
obtained equality without issues. White had no real chances in the resulting
rook endgame.} (23... gxf6 24. Bxg6 Nd7 25. Qe4 fxg6 26. Qxg6+ Kh8 27. Qg8+
Kxg8 {1/2-1/2 (29) Karpov,A (2651)-Caruana,F (2640) Cap d'Agde 2008}) 24. Qxe4
{[%emt 0:00:08]} gxf6 {[%emt 0:00:03]} 25. Qf4 {[%emt 0:00:14]} Qb6 {[%emt 0:
07:31]} 26. h4 {[%emt 0:02:49]} e5 {[%emt 0:01:36]} 27. Qe4 {[%emt 0:00:19]}
Qd6 {[%emt 0:04:51]} 28. Rcd1 {[%emt 0:08:51]} Qc6 {[%emt 0:05:33]} 29. Qxc6 {
[%emt 0:10:51]} Rxc6 {[%emt 0:00:04]} 30. h5 {[%emt 0:00:06]} gxh5 {[%emt 0:02:
21]} 31. Rxh5 {[%emt 0:00:07]} Rfc8 {[%emt 0:00:26]} 32. Rhh1 {[%emt 0:03:35]}
Kf8 {[%emt 0:03:12]} 33. Rd7 {[%emt 0:11:48]} Kg7 {[%emt 0:15:54]} 34. Ra7 {
[%emt 0:03:15]} f5 {[%emt 0:05:31]} 35. a3 {[%emt 0:00:48]} R8c7 {[%emt 0:03:
56]} 36. Rxc7 {[%emt 0:01:14]} Rxc7 {[%emt 0:00:04]} 37. Rd1 {[%emt 0:02:11]}
Rc6 {[%emt 0:00:10]} 38. Rd5 {[%emt 0:00:06]} Kf6 {[%emt 0:01:09]} 39. f4 {
[%emt 0:00:26]} exf4 {[%emt 0:03:59]} 40. exf4 {[%emt 0:00:00]} Ke6 {[%emt 0:
00:00]} 41. Re5+ {[%emt 0:00:11]} Kf6 {[%emt 0:00:24]} 42. Rd5 {[%emt 0:03:32]}
Ke6 {[%emt 0:00:06]} 43. Re5+ {[%emt 0:00:03]} Kf6 {[%emt 0:00:03]} 1/2-1/2

[Event "Metz op 31th"]
[Site "Metz"]
[Date "2013.04.21"]
[Round "3"]
[White "Donchenko, Alexander"]
[Black "Svetushkin, Dmitry"]
[Result "0-1"]
[ECO "D12"]
[WhiteElo "2428"]
[BlackElo "2588"]
[Annotator "Metz Alekhine/Primel,D"]
[PlyCount "70"]
[EventDate "2013.04.20"]
[EventType "swiss"]
[EventRounds "9"]
[EventCountry "FRA"]
[SourceTitle "EXT 2016"]
[Source "ChessBase"]
[SourceDate "2015.10.08"]
[SourceVersion "1"]
[SourceVersionDate "2015.10.08"]
[SourceQuality "1"]
[TimeControl "40/5400:1800+30"]
[WhiteClock "1:30:00"]
[BlackClock "1:30:00"]

1. d4 d5 2. c4 c6 3. Nf3 Nf6 4. e3 Bf5 (4... e6) (4... Bg4) 5. Nc3 (5. Qb3 Qb6)
5... e6 6. Nh4 Bg6 7. Be2 (7. Nxg6) 7... Nbd7 8. O-O (8. Bd2 Bd6 9. Nxg6 hxg6
10. Qc2 (10. h3)) 8... Bd6 {[%cal Gd6h2,Gf6g4,Gd8h4]} 9. g3 a6 (9... Qe7 10.
Qb3 Rb8 11. Bd2 O-O 12. Nxg6 hxg6 13. Qc2 a6 14. c5 Bc7 15. b4 e5 16. a4 Qe6
17. Kg2 e4 18. f4 exf3+ 19. Bxf3 Rbe8 20. Rab1 Re7 21. b5 axb5 22. axb5 Ba5 23.
Nxd5 Nxd5 24. e4 N7f6 25. exd5 Nxd5 26. Rbe1 Qxe1 27. Rxe1 Rxe1 28. Bg5 Nc7 29.
bxc6 Ne6 30. cxb7 Nxg5 31. d5 Bc7 32. d6 Bb8 33. Qd2 Rg1+ 34. Kf2 Nxf3 35. Kxf3
Rf1+ 36. Kg2 Rf6 37. Qd5 Rf5 38. Qc6 Ba7 39. d7 {Bologan,V (2655)-Motylev,A 
(2687) Poikovsky 2014 1-0}) (9... O-O 10. Nxg6) 10. Nxg6 hxg6 11. Qc2 dxc4 12.
Bxc4 Qe7 $146 (12... Qa5 13. Be2 Qf5 14. Qxf5 gxf5 15. Kg2 Ke7 16. h4 Rac8 17.
Bf3 Rhd8 18. Bd2 e5 19. dxe5 Nxe5 20. Rad1 b5 21. Ne2 Nxf3 22. Kxf3 Be5 23. Bc3
Bxc3 24. Nxc3 c5 25. e4 b4 26. e5 Ng4 27. Nd5+ Ke6 28. Nf4+ Ke7 29. Nd5+ Rxd5
30. Rxd5 Nh2+ 31. Kg2 Nxf1 32. Kxf1 Ke6 33. Rd6+ Kxe5 34. Rxa6 Rc7 35. Ke2 f4
36. a3 fxg3 37. fxg3 Kd4 38. Kd2 Kc4 39. Kc2 Re7 40. axb4 cxb4 41. b3+ Kd5 42.
Ra5+ {Ahvenjarvi,J (2210)-Houska,J (2398) Oslo 2012 1/2-1/2 (87)}) 13. Ne4 Nxe4
14. Qxe4 g5 $1 $11 {[%csl Gf4,Rh2,Gh4][%cal Ge7f6,Gf6h6]} 15. Bd2 Nf6 (15...
Qf6) (15... g4) 16. Qg2 $6 {[%csl Rg2] L'aile-roi a été affaiblie et la Q
revient en défense mais la Qg2 est trop passive} g4 17. f4 {Un nouvel
affaiblissement mais les Blancs de s'activer} gxf3 18. Qxf3 e5 $15 19. e4 $1 {
[%csl Rf6][%cal Gd2g5] Un bon sacrifice pour tenter d'exploiter la paire de B}
exd4 20. e5 $1 {[%csl Re8] La suite logique mais les Blancs doivent maintenant
justifier l'investissement de 2 P et si les Noirs arrivent à roquer,
l'attaque Blanche risque de s'essouffler} (20. Bg5 Be5) 20... Bxe5 21. Rae1 O-O
$5 {Le ooo parait assez risqué} (21... O-O-O $6 22. Bf4 (22. Bxa6 bxa6 23.
Qxc6+) 22... Nd7 23. Bxe5 Nxe5 24. Qf5+) 22. Qf5 $1 {[%csl Re5][%cal Gf1f4,
Gf4h4]} Rae8 23. Bg5 Qd6 24. Bd3 $2 (24. Bxf6 $142 Bxf6 25. Bxf7+ $1 {La pointe
} Kxf7 26. Qh5+ {[%csl Re8]} Kg8 (26... g6 27. Qh7#) 27. Rxe8) 24... g6 $1 {
Gagne un tempo important sur la Q et les Noirs vont avoir le temps de ramener
le Bg7 en défense} 25. Qh3 Nd5 $40 {[%cal Ge5g7,Gd5e3] les Blancs n'ont plus
assez de compensations} 26. Re4 Bg7 27. Rh4 Qe6 28. Bf5 {Une dernière
tentative} gxf5 $19 29. Bh6 Qg6 $1 {le P"f5" pare la menace Rg4} 30. Rxf5 Bxh6
31. Rg4 {Beaucoup de joueurs coté noir auraient paniqué face à la menace
d'enfilade mais le GMI va faire preuve de sang-froid en trouvant une jolie
parade.} Re1+ $1 32. Kf2 Rf1+ $1 {La pointe!} 33. Ke2 Re8+ 34. Kd3 Rf3+ 35.
Kxd4 Bg7+ 0-1

[Event "FRA-chT Top 12"]
[Site "Brest"]
[Date "2019.05.24"]
[Round "7.1"]
[White "Velten, Paul"]
[Black "Solodovnichenko, Yuri"]
[Result "0-1"]
[ECO "D12"]
[WhiteElo "2507"]
[BlackElo "2572"]
[Annotator "Mueller,Karsten"]
[PlyCount "154"]
[EventDate "2019.05.18"]
[EventType "team-tourn"]
[EventRounds "11"]
[EventCountry "FRA"]
[SourceTitle "CBM 191"]
[Source "ChessBase"]
[SourceDate "2019.08.31"]
[SourceVersion "1"]
[SourceVersionDate "2019.08.31"]
[SourceQuality "1"]
[WhiteTeam "Tours Hauts-de-France St Quentin"]
[BlackTeam "Vandoeuvre echecs"]
[WhiteTeamCountry "FRA"]
[BlackTeamCountry "FRA"]
[TimeControl "40/5400+30:1800+30"]

1. d4 {[%emt 0:00:00]} d5 {[%emt 0:00:00]} 2. c4 {[%emt 0:00:12]} c6 {[%emt 0:
00:30]} 3. e3 {[%emt 0:07:11]} Bf5 {[%emt 0:00:47]} 4. Nc3 {[%emt 0:03:19]} e6
{[%emt 0:00:31]} 5. Nf3 {[%emt 0:00:37]} Nd7 {[%emt 0:00:12]} 6. Bd3 {[%emt 0:
01:52]} Bxd3 {[%emt 0:01:18]} 7. Qxd3 {[%emt 0:00:16]} Ngf6 {[%emt 0:00:13]} 8.
O-O {[%emt 0:00:18]} Be7 {[%emt 0:01:13]} 9. Rd1 {[%emt 0:02:45]} O-O {[%emt 0:
01:58]} 10. e4 {[%emt 0:06:51]} dxe4 {[%emt 0:00:31]} 11. Nxe4 {[%emt 0:00:13]}
Nxe4 {[%emt 0:00:44]} 12. Qxe4 {[%emt 0:00:11]} Re8 {[%emt 0:02:16]} 13. Be3 {
[%emt 0:00:43]} Qa5 {[%emt 0:01:50]} 14. Bd2 $146 {[%emt 0:10:03]} (14. a3 Qa4
15. Rac1 Rad8 16. h3 Nb6 17. Qb1 h6 18. Qa2 Bf6 19. b3 Qa5 20. a4 Rd7 21. Rd2
Red8 22. Rcd1 Qf5 23. Qb1 Qxb1 24. Rxb1 g5 25. Rbd1 Kg7 26. Kf1 Kg6 27. g4 Bg7
28. a5 Nc8 29. Ne5+ Bxe5 30. dxe5 Rxd2 31. Rxd2 Rxd2 32. Bxd2 h5 33. Be3 hxg4
34. hxg4 a6 35. Ke2 f5 36. exf6 Kxf6 37. Kd3 e5 38. Kc3 Nd6 39. f3 Nf7 40. Kb4
Ke6 41. Kc5 Kd7 42. Kb6 Kc8 43. Bc5 Kb8 {Byrne,R (2530)-Sigurjonsson,G (2475)
Reykjavik 1980 1/2-1/2}) 14... Qa6 {[%emt 0:03:38]} 15. Qc2 {[%emt 0:00:41]}
Bf6 {[%emt 0:04:18]} 16. Bg5 {[%emt 0:07:44]} Rad8 {[%emt 0:02:26]} 17. Bxf6 {
[%emt 0:01:46]} Nxf6 {[%emt 0:00:07]} 18. b3 {[%emt 0:00:24]} Qa5 {[%emt 0:02:
46]} 19. Rd2 {[%emt 0:00:32]} Qf5 {[%emt 0:03:36]} 20. Re1 {[%emt 0:02:10]} Qf4
{[%emt 0:01:49]} 21. Re3 {[%emt 0:01:38]} Re7 {[%emt 0:03:44]} 22. g3 {[%emt 0:
03:42]} Qc7 {[%emt 0:00:47]} 23. Kg2 {[%emt 0:05:20]} Red7 {[%emt 0:02:30]} 24.
Red3 {[%emt 0:03:09]} Rd6 {[%emt 0:06:28]} 25. Rd1 {[%emt 0:01:14]} Qa5 {
[%emt 0:01:36]} 26. Qe2 {[%emt 0:04:19]} h6 {[%emt 0:02:28]} 27. h3 {[%emt 0:
00:19]} Qf5 {[%emt 0:00:37]} 28. Re3 {[%emt 0:04:05]} Qa5 {[%emt 0:01:05]} 29.
Red3 {[%emt 0:00:15]} a6 {[%emt 0:01:49]} 30. Qe1 {[%emt 0:15:00]} Qxe1 {
[%emt 0:10:03]} 31. Nxe1 {[%emt 0:00:21]} g5 {[%emt 0:00:49]} 32. Kf3 {[%emt 0:
01:59]} R6d7 {[%emt 0:06:52]} 33. Ke3 {[%emt 0:01:32]} Ne8 {[%emt 0:00:32]} 34.
Nc2 {[%emt 0:00:55]} Nd6 {[%emt 0:00:44]} 35. c5 {[%emt 0:04:56]} Nb5 {[%emt 0:
01:59]} 36. a4 {[%emt 0:01:33]} Nc7 {[%emt 0:00:07]} 37. Ke2 {[%emt 0:04:43]}
Nd5 {[%emt 0:03:43]} 38. Ne3 {[%emt 0:00:24]} f6 {[%emt 0:00:41]} 39. Kf3 {
[%emt 0:03:55]} e5 $1 {[%emt 0:06:08][%cal Gd7d3]} 40. Nf5 {[%emt 0:00:54]} Nb4
$1 {[%emt 0:01:51]} 41. R3d2 {[%emt 0:03:19]} exd4 {[%emt 0:00:41]} (41... Kf8)
(41... h5) 42. Rxd4 {[%emt 0:03:55]} Rxd4 {[%emt 0:02:41]} 43. Rxd4 {[%emt 0:
00:08]} Rxd4 {[%emt 0:00:36]} 44. Nxd4 {[%emt 0:00:04]} Nd3 {[%emt 0:02:20]}
45. Ne6 {[%emt 0:00:21]} Nc1 {[%emt 0:01:05]} 46. Ke3 {[%emt 0:01:29]} Nxb3 {
[%emt 0:00:52]} 47. Kd3 {[%emt 0:00:26]} Kf7 {[%emt 0:05:22]} 48. Nd8+ {
[%emt 0:00:13]} Ke7 {[%emt 0:00:15]} 49. Nxb7 {[%emt 0:00:04]} f5 {[%emt 0:00:
16]} 50. Kc3 {[%emt 0:03:14]} Nc1 {[%emt 0:00:13]} 51. Kd4 $6 {[%emt 0:07:57]}
(51. Na5 $1 {[%csl Rc1][%cal Ga5c6,Ga5b3]} Kd7 (51... Ne2+ 52. Kd3 Ng1 53. h4
gxh4 54. gxh4 h5 {[%cal Gg1f3]} 55. Ke3 Nh3 56. Nxc6+ Kd7 57. Ne5+) 52. Kd2)
51... f4 {[%emt 0:02:14]} 52. gxf4 {[%emt 0:09:15]} Ne2+ {[%emt 0:00:24]} 53.
Ke4 {[%emt 0:00:07]} Nxf4 {[%emt 0:01:46]} 54. h4 {[%emt 0:00:08]} Ne6 {
[%emt 0:06:20]} 55. hxg5 {[%emt 0:00:25]} Nxg5+ {[%emt 0:03:17]} 56. Kf5 {
[%emt 0:06:59]} Ne6 {[%emt 0:01:17]} 57. Na5 {[%emt 0:01:12]} Nxc5 {[%emt 0:02:
46]} 58. Nxc6+ {[%emt 0:00:10]} Kd6 {[%emt 0:00:08]} 59. Na5 {[%emt 0:00:09]}
Nd3 {[%emt 0:03:17]} 60. f3 {[%emt 0:00:59]} Kc5 {[%emt 0:00:07]} 61. Kg6 Ne5+
{[%emt 0:00:16]} 62. Kxh6 {[%emt 0:01:06]} Nxf3 {[%emt 0:00:05]} 63. Kg6 {
[%emt 0:00:40]} Nd2 {[%emt 0:02:36]} 64. Nb7+ {[%emt 0:00:19]} Kb4 {[%emt 0:00:
19]} 65. Kf5 {[%emt 0:00:12]} Nb3 {[%emt 0:00:06]} 66. Ke4 {[%emt 0:00:14]}
Kxa4 {[%emt 0:00:10]} 67. Kd3 {[%emt 0:00:05]} Kb4 {[%emt 0:00:14]} 68. Kc2 {
[%emt 0:00:05]} Nd4+ {[%emt 0:00:09]} 69. Kb2 {[%emt 0:00:05]} Nf5 {[%emt 0:01:
07]} 70. Ka2 {[%emt 0:00:27]} Ne7 {[%emt 0:00:50]} 71. Kb2 {[%emt 0:00:16]} Nc6
{[%emt 0:00:10]} 72. Ka2 {[%emt 0:00:27]} Ne5 {[%emt 0:00:23]} 73. Kb2 $2 {
[%emt 0:00:33]} Nf7 $1 {[%emt 0:00:06] Total domination!  The black king is at
a distance to dominate the knight, which can also be called the Karpov
distance and now the black knight is also dominating it from the east as well.
Totale Dominanz! Der schwarze König steht zum Springer in einer
Dominanzdistanz, die auch Karpovdistanz genannt werden kann und nun dominiert
der schwarze Springer ihn auch noch in östlicher Richtung.} 74. Ka2 {[%emt 0:
03:23]} Kb5 {[%emt 0:00:05]} 75. Kb3 {[%emt 0:00:08]} Kb6 {[%emt 0:00:05]} 76.
Nc5 {[%emt 0:00:11]} Kxc5 {[%emt 0:00:05]} 77. Ka4 {[%emt 0:00:02]} Kb6 {
[%emt 0:00:06]} 0-1